[Event "Hungarian Rapid-ch 2022"]
[Site "Ajka"]
[Date "2022.07.15"]
[Round "1.1"]
[White "Berkes, Ferenc"]
[Black "Majoros, Rozsa Evelin"]
[Result "1-0"]
[ECO "E24"]
[WhiteElo "2649"]
[BlackElo "2059"]
[Annotator "ChessBase"]
[PlyCount "55"]
[EventDate "2022.07.15"]
[EventType "swiss"]
[EventCountry "HUN"]
[SourceTitle "playchess.com"]
[Source "ChessBase"]
[SourceQuality "1"]
[TimeControl "900+10"]

1. d4 {[%emt 0:00:12]} Nf6 {[%emt 0:00:11]} 2. c4 {[%emt 0:00:03]} e6 {[%emt 0:00:02]} 3. Nc3 {[%emt 0:00:03]} Bb4 {[%emt 0:00:02]} 4. a3 {[%emt 0:00:03]} Bxc3+ {[%emt 0:00:24]} 5. bxc3 {[%emt 0:00:02]} b6 {[%emt 0:00:32]} 6. f3 {[%emt 0:00:07]} d5 {[%emt 0:00:35]} 7. cxd5 {[%emt 0:00:03]} exd5 {[%emt 0:00:24]} 8. e3 {[%emt 0:00:03]} O-O {[%emt 0:01:13]} 9. Bd3 {[%emt 0:00:03]} c5 {[%emt 0:00:31]} 10. Ne2 {[%emt 0:00:03]} Nc6 {[%emt 0:01:02]} 11. O-O {[%emt 0:00:04]} Re8 {[%emt 0:00:40]} 12. Ra2 {[%emt 0:01:05]} a5 {[%emt 0:01:14]} 13. Nf4 {[%emt 0:01:09]} c4 {[%emt 0:01:39]} 14. Bb1 {[%emt 0:00:08]} b5 {[%emt 0:00:40]} 15. g4 {[%emt 0:00:10]} Be6 {[%emt 0:01:27]} 16. g5 {[%emt 0:01:01]} Nd7 {[%emt 0:00:03]} 17. e4 {[%emt 0:00:04]} Nf8 {[%emt 0:00:48]} 18. h4 {[%emt 0:00:19]} b4 {[%emt 0:00:35]} 19. axb4 {[%emt 0:00:05]} axb4 {[%emt 0:01:41]} 20. Rxa8 {[%emt 0:00:03]} Qxa8 {[%emt 0:00:01]} 21. exd5 {[%emt 0:00:03]} Qa1 {[%emt 0:00:46]} 22. Be4 {[%emt 0:00:14]} Qxc3 {[%emt 0:00:32]} 23. dxc6 {[%emt 0:00:20]} b3 {[%emt 0:00:16]} 24. d5 {[%emt 0:00:03]} b2 {[%emt 0:00:27]} 25. dxe6 {[%emt 0:00:24]} bxc1=Q {[%emt 0:00:22]} 26. exf7+ {[%emt 0:00:04]} Kxf7 {[%emt 0:00:04]} 27. Qxc1 {[%emt 0:00:28]} Qd4+ {[%emt 0:00:08]} 28. Kg2 {[%emt 0:00:28]} 1-0

[Event "Hungarian Rapid-ch 2022"]
[Site "Ajka"]
[Date "2022.07.15"]
[Round "1.2"]
[White "Marton, Jozsef"]
[Black "Gledura, Benjamin"]
[Result "0-1"]
[ECO "A48"]
[WhiteElo "2059"]
[BlackElo "2637"]
[Annotator "ChessBase"]
[PlyCount "50"]
[EventDate "2022.07.15"]
[EventType "swiss"]
[EventCountry "HUN"]
[SourceTitle "playchess.com"]
[Source "ChessBase"]
[SourceQuality "1"]
[TimeControl "900+10"]

1. d4 {[%emt 0:00:12]} Nf6 {[%emt 0:00:13]} 2. Nf3 {[%emt 0:00:03]} g6 {[%emt 0:00:04]} 3. Bg5 {[%emt 0:00:10]} Bg7 {[%emt 0:00:03]} 4. e3 {[%emt 0:00:04]} O-O {[%emt 0:00:12]} 5. Be2 {[%emt 0:00:12]} c5 {[%emt 0:00:07]} 6. c3 {[%emt 0:00:02]} h6 {[%emt 0:01:44]} 7. Bh4 {[%emt 0:00:16]} cxd4 {[%emt 0:00:17]} 8. exd4 {[%emt 0:00:17]} d6 {[%emt 0:00:02]} 9. Nbd2 {[%emt 0:00:14]} Nh5 {[%emt 0:00:06]} 10. Bg3 {[%emt 0:01:17]} e5 {[%emt 0:00:33]} 11. dxe5 {[%emt 0:00:24]} Nxg3 {[%emt 0:00:09]} 12. hxg3 {[%emt 0:00:05]} dxe5 {[%emt 0:00:03]} 13. Ne4 {[%emt 0:01:18]} Nc6 {[%emt 0:00:09]} 14. Qb3 {[%emt 0:01:33]} Qc7 {[%emt 0:00:19]} 15. O-O-O {[%emt 0:00:58]} Be6 {[%emt 0:00:23]} 16. Qa3 {[%emt 0:00:13]} Rfd8 {[%emt 0:01:58]} 17. Rxd8+ {[%emt 0:02:32]} Rxd8 {[%emt 0:00:01]} 18. Rd1 {[%emt 0:00:03]} Nd4 {[%emt 0:01:17]} 19. Bf1 {[%emt 0:01:06]} b6 {[%emt 0:00:20]} 20. Qa4 {[%emt 0:02:34]} Bd5 {[%emt 0:00:37]} 21. Ned2 {[%emt 0:00:59]} a5 {[%emt 0:01:59]} 22. Kb1 {[%emt 0:00:28]} Bc6 {[%emt 0:00:12]} 23. Qc4 {[%emt 0:00:47]} b5 {[%emt 0:00:12]} 24. Qc5 {[%emt 0:00:03]} Nxf3 {[%emt 0:00:10]} 25. gxf3 {[%emt 0:00:11]} Rxd2 {[%emt 0:00:05]} 0-1

[Event "Hungarian Rapid-ch 2022"]
[Site "Ajka"]
[Date "2022.07.15"]
[Round "1.3"]
[White "Balog, Imre"]
[Black "Suranyi, Pal"]
[Result "1-0"]
[ECO "B06"]
[WhiteElo "2594"]
[BlackElo "2023"]
[Annotator "ChessBase"]
[PlyCount "73"]
[EventDate "2022.07.15"]
[EventType "swiss"]
[EventCountry "HUN"]
[SourceTitle "playchess.com"]
[Source "ChessBase"]
[SourceQuality "1"]
[TimeControl "900+10"]

1. e4 {[%emt 0:00:14]} g6 {[%emt 0:00:11]} 2. d4 {[%emt 0:00:13]} Bg7 {[%emt 0:00:01]} 3. Nf3 {[%emt 0:00:18]} d6 {[%emt 0:00:00]} 4. Bc4 {[%emt 0:00:02]} Nf6 {[%emt 0:00:15]} 5. Qe2 {[%emt 0:00:02]} e6 {[%emt 0:00:13]} 6. e5 {[%emt 0:00:14]} dxe5 {[%emt 0:00:12]} 7. dxe5 {[%emt 0:00:02]} Nd5 {[%emt 0:00:01]} 8. O-O {[%emt 0:00:04]} O-O {[%emt 0:00:09]} 9. Rd1 {[%emt 0:00:02]} c5 {[%emt 0:00:41]} 10. Bb3 {[%emt 0:00:24]} b5 {[%emt 0:02:32]} 11. Qxb5 {[%emt 0:00:33]} Ba6 {[%emt 0:00:03]} 12. Qxc5 {[%emt 0:00:50]} Be2 {[%emt 0:00:02]} 13. Bg5 {[%emt 0:00:58]} Nd7 {[%emt 0:00:16]} 14. Qd6 {[%emt 0:01:17]} Bxe5 {[%emt 0:00:26]} 15. Nxe5 {[%emt 0:04:03]} Qxg5 {[%emt 0:00:14]} 16. Nxd7 {[%emt 0:00:24]} Bxd1 {[%emt 0:02:30]} 17. Nc3 {[%emt 0:01:02]} Nf4 {[%emt 0:01:22]} 18. g3 {[%emt 0:00:11]} Nh3+ {[%emt 0:01:36]} 19. Kg2 {[%emt 0:00:02]} Bg4 {[%emt 0:01:30]} 20. Ne4 {[%emt 0:01:14]} Qf5 {[%emt 0:01:48]} 21. Nef6+ {[%emt 0:00:12]} Kg7 {[%emt 0:00:21]} 22. Nxg4 {[%emt 0:00:03]} Qxg4 {[%emt 0:00:02]} 23. Nxf8 {[%emt 0:00:01]} Rxf8 {[%emt 0:00:05]} 24. Qe5+ {[%emt 0:00:28]} f6 {[%emt 0:01:28]} 25. Bxe6 {[%emt 0:01:04]} fxe5 {[%emt 0:00:10]} 26. Bxg4 {[%emt 0:00:02]} Nxf2 {[%emt 0:00:02]} 27. Be2 e4 {[%emt 0:00:19]} 28. Re1 {[%emt 0:00:28]} g5 {[%emt 0:01:25]} 29. h3 {[%emt 0:00:14]} Kg6 {[%emt 0:00:32]} 30. Bc4 {[%emt 0:00:15]} g4 {[%emt 0:00:51]} 31. hxg4 {[%emt 0:00:09]} Kg5 {[%emt 0:00:31]} 32. Be6 {[%emt 0:01:06]} Re8 {[%emt 0:00:30]} 33. Bd7 {[%emt 0:00:05]} Re7 {[%emt 0:00:01]} 34. Kxf2 {[%emt 0:00:02]} Rxd7 {[%emt 0:00:01]} 35. Rxe4 {[%emt 0:00:02]} Rd2+ {[%emt 0:00:00]} 36. Re2 {[%emt 0:00:01]} Rd4 {[%emt 0:00:04]} 37. Kf3 {[%emt 0:00:02]} 1-0

[Event "Hungarian Rapid-ch 2022"]
[Site "Ajka"]
[Date "2022.07.15"]
[Round "1.4"]
[White "Kosztolanczi, Gyula"]
[Black "Hera, Imre Jr."]
[Result "0-1"]
[ECO "B43"]
[WhiteElo "2073"]
[BlackElo "2568"]
[Annotator "ChessBase"]
[PlyCount "72"]
[EventDate "2022.07.15"]
[EventType "swiss"]
[EventCountry "HUN"]
[SourceTitle "playchess.com"]
[Source "ChessBase"]
[SourceQuality "1"]
[TimeControl "900+10"]

1. e4 {[%emt 0:03:00]} c5 {[%emt 0:00:22]} 2. Nf3 {[%emt 0:00:01]} e6 {[%emt 0:00:02]} 3. d4 {[%emt 0:00:02]} cxd4 {[%emt 0:00:02]} 4. Nxd4 {[%emt 0:00:02]} a6 {[%emt 0:00:01]} 5. Nc3 {[%emt 0:00:02]} Qc7 {[%emt 0:00:07]} 6. Bd3 {[%emt 0:00:07]} b5 {[%emt 0:00:21]} 7. O-O {[%emt 0:00:08]} Bb7 {[%emt 0:00:02]} 8. Qg4 {[%emt 0:01:50]} Nf6 {[%emt 0:00:25]} 9. Qh4 {[%emt 0:00:41]} Be7 {[%emt 0:00:34]} 10. Bf4 {[%emt 0:01:52]} d6 {[%emt 0:01:59]} 11. Bg5 {[%emt 0:02:12]} h6 {[%emt 0:00:12]} 12. Rae1 {[%emt 0:00:38]} Nbd7 {[%emt 0:00:47]} 13. Kh1 {[%emt 0:01:05]} Ne5 {[%emt 0:00:30]} 14. Bxf6 {[%emt 0:01:20]} Bxf6 {[%emt 0:00:01]} 15. Qh3 {[%emt 0:00:28]} O-O {[%emt 0:00:48]} 16. Re3 {[%emt 0:01:11]} Nc4 {[%emt 0:00:25]} 17. Bxc4 {[%emt 0:00:17]} Bxd4 {[%emt 0:00:08]} 18. Bd3 {[%emt 0:01:05]} Bxe3 {[%emt 0:00:07]} 19. Qxe3 {[%emt 0:00:11]} Qc5 {[%emt 0:00:08]} 20. Qh3 {[%emt 0:00:09]} Qb4 {[%emt 0:00:06]} 21. f4 {[%emt 0:00:29]} Qxb2 {[%emt 0:00:11]} 22. e5 {[%emt 0:00:08]} Rac8 {[%emt 0:00:15]} 23. Nd1 {[%emt 0:00:11]} Qd4 {[%emt 0:00:07]} 24. exd6 {[%emt 0:00:34]} Be4 {[%emt 0:00:39]} 25. d7 {[%emt 0:00:23]} Rcd8 {[%emt 0:00:08]} 26. f5 {[%emt 0:00:19]} exf5 {[%emt 0:00:16]} 27. Bxe4 {[%emt 0:00:03]} fxe4 {[%emt 0:00:06]} 28. Ne3 {[%emt 0:00:13]} Qxd7 {[%emt 0:00:13]} 29. Nf5 {[%emt 0:00:06]} Kh7 {[%emt 0:01:13]} 30. Qh5 {[%emt 0:00:10]} Qe6 {[%emt 0:00:26]} 31. Ne3 {[%emt 0:00:41]} g6 {[%emt 0:00:35]} 32. Qh4 {[%emt 0:00:06]} f5 {[%emt 0:00:12]} 33. h3 {[%emt 0:00:16]} Qf6 {[%emt 0:00:05]} 34. Qe1 {[%emt 0:00:07]} h5 {[%emt 0:00:24]} 35. g3 {[%emt 0:00:11]} Qd6 {[%emt 0:00:13]} 36. Qa5 {[%emt 0:00:28]} Qxg3 {[%emt 0:00:07]} 0-1

[Event "Hungarian Rapid-ch 2022"]
[Site "Ajka"]
[Date "2022.07.15"]
[Round "1.5"]
[White "Horvath, Csaba"]
[Black "Erseki, Tamara"]
[Result "1-0"]
[ECO "A05"]
[WhiteElo "2506"]
[BlackElo "1907"]
[Annotator "ChessBase"]
[PlyCount "77"]
[EventDate "2022.07.15"]
[EventType "swiss"]
[EventCountry "HUN"]
[SourceTitle "playchess.com"]
[Source "ChessBase"]
[SourceQuality "1"]
[TimeControl "900+10"]

1. Nf3 {[%emt 0:00:13]} Nf6 {[%emt 0:00:11]} 2. g3 {[%emt 0:00:07]} g6 {[%emt 0:00:02]} 3. b3 {[%emt 0:00:04]} Bg7 {[%emt 0:00:04]} 4. Bb2 {[%emt 0:00:02]} O-O {[%emt 0:00:04]} 5. Bg2 {[%emt 0:00:02]} d5 {[%emt 0:00:20]} 6. c4 {[%emt 0:00:22]} c6 {[%emt 0:00:53]} 7. O-O {[%emt 0:00:12]} Bf5 {[%emt 0:00:28]} 8. d3 {[%emt 0:00:10]} Qc8 {[%emt 0:01:23]} 9. Nbd2 {[%emt 0:00:49]} Bh3 {[%emt 0:00:19]} 10. Rc1 {[%emt 0:00:48]} Bxg2 {[%emt 0:00:04]} 11. Kxg2 {[%emt 0:00:02]} dxc4 {[%emt 0:00:21]} 12. Nxc4 {[%emt 0:00:16]} Nbd7 {[%emt 0:00:28]} 13. b4 {[%emt 0:00:25]} Nb6 {[%emt 0:00:24]} 14. Na5 {[%emt 0:00:14]} Qd7 {[%emt 0:00:32]} 15. a3 {[%emt 0:00:36]} Rfd8 {[%emt 0:00:48]} 16. Qc2 {[%emt 0:00:50]} Rac8 {[%emt 0:00:17]} 17. Ne5 {[%emt 0:00:17]} Qc7 {[%emt 0:02:35]} 18. d4 {[%emt 0:00:33]} Nfd7 {[%emt 0:01:05]} 19. Nf3 {[%emt 0:00:20]} Qb8 {[%emt 0:00:46]} 20. e4 {[%emt 0:00:21]} Nf6 {[%emt 0:00:10]} 21. Rfd1 {[%emt 0:00:40]} Nbd7 {[%emt 0:01:03]} 22. Qe2 {[%emt 0:00:06]} Bh6 {[%emt 0:01:17]} 23. Rc2 {[%emt 0:00:08]} Nb6 {[%emt 0:01:29]} 24. Ne5 {[%emt 0:01:50]} Nfd7 {[%emt 0:01:28]} 25. Nexc6 {[%emt 0:00:57]} bxc6 {[%emt 0:00:01]} 26. Nxc6 {[%emt 0:00:02]} Rxc6 27. Rxc6 {[%emt 0:00:02]} Qb7 {[%emt 0:00:33]} 28. d5 {[%emt 0:00:22]} Rc8 {[%emt 0:00:21]} 29. Qc2 {[%emt 0:00:33]} Bg7 {[%emt 0:00:20]} 30. Bxg7 {[%emt 0:00:10]} Kxg7 {[%emt 0:00:01]} 31. Rc1 {[%emt 0:00:37]} Rd8 {[%emt 0:00:27]} 32. Qc3+ {[%emt 0:00:42]} Kg8 {[%emt 0:00:02]} 33. b5 {[%emt 0:00:18]} a6 {[%emt 0:00:16]} 34. Qb4 {[%emt 0:01:09]} Ne5 {[%emt 0:01:09]} 35. bxa6 {[%emt 0:01:13]} Nxc6 {[%emt 0:00:42]} 36. Rxc6 {[%emt 0:00:02]} Qxa6 {[%emt 0:00:20]} 37. Rxb6 {[%emt 0:00:03]} Qe2 {[%emt 0:00:20]} 38. Qxe7 {[%emt 0:00:12]} Rc8 {[%emt 0:00:01]} 39. Rb7 {[%emt 0:00:20]} 1-0

[Event "Hungarian Rapid-ch 2022"]
[Site "Ajka"]
[Date "2022.07.15"]
[Round "1.6"]
[White "Hrubos, Viktor"]
[Black "Prohaszka, Peter"]
[Result "0-1"]
[ECO "A06"]
[WhiteElo "1890"]
[BlackElo "2570"]
[Annotator "ChessBase"]
[PlyCount "80"]
[EventDate "2022.07.15"]
[EventType "swiss"]
[EventCountry "HUN"]
[SourceTitle "playchess.com"]
[Source "ChessBase"]
[SourceQuality "1"]
[TimeControl "900+10"]

1. Nf3 {[%emt 0:00:11]} d5 {[%emt 0:00:12]} 2. c4 {[%emt 0:00:01]} e6 {[%emt 0:00:02]} 3. b3 {[%emt 0:00:01]} Nf6 {[%emt 0:00:13]} 4. Bb2 {[%emt 0:00:01]} c5 {[%emt 0:00:18]} 5. e3 {[%emt 0:00:01]} Nc6 {[%emt 0:00:06]} 6. d3 {[%emt 0:00:15]} d4 {[%emt 0:01:11]} 7. Be2 {[%emt 0:00:20]} e5 {[%emt 0:00:32]} 8. Nbd2 {[%emt 0:00:17]} h6 {[%emt 0:00:29]} 9. O-O {[%emt 0:01:47]} Bd6 {[%emt 0:00:10]} 10. e4 {[%emt 0:00:48]} Be6 {[%emt 0:00:43]} 11. Nh4 {[%emt 0:00:26]} g6 {[%emt 0:00:06]} 12. g3 {[%emt 0:00:09]} Bh3 {[%emt 0:00:36]} 13. Ng2 {[%emt 0:00:02]} g5 {[%emt 0:00:47]} 14. f3 {[%emt 0:01:11]} Qd7 {[%emt 0:00:22]} 15. Rf2 {[%emt 0:00:02]} h5 {[%emt 0:00:15]} 16. Nf1 {[%emt 0:00:29]} h4 {[%emt 0:02:08]} 17. g4 {[%emt 0:00:20]} Nh7 {[%emt 0:00:26]} 18. Qd2 {[%emt 0:04:10]} f6 {[%emt 0:00:16]} 19. Bc1 {[%emt 0:01:12]} Nf8 {[%emt 0:00:22]} 20. a3 {[%emt 0:00:04]} Ne6 {[%emt 0:00:02]} 21. Qb2 {[%emt 0:00:08]} a6 {[%emt 0:00:17]} 22. Rb1 {[%emt 0:00:05]} b5 {[%emt 0:00:26]} 23. Qc2 {[%emt 0:00:25]} Rb8 {[%emt 0:00:29]} 24. Qa2 {[%emt 0:01:36]} Kf8 {[%emt 0:00:33]} 25. Rb2 {[%emt 0:00:27]} Kg7 {[%emt 0:00:02]} 26. Bd1 {[%emt 0:00:39]} Rb7 {[%emt 0:00:13]} 27. Nfe3 {[%emt 0:01:08]} dxe3 {[%emt 0:00:24]} 28. Nxe3 {[%emt 0:00:01]} Ncd4 {[%emt 0:00:22]} 29. Rb1 {[%emt 0:00:42]} Nf4 {[%emt 0:00:13]} 30. Bb2 {[%emt 0:00:24]} Nxd3 {[%emt 0:00:35]} 31. Rd2 {[%emt 0:00:29]} Nxb2 {[%emt 0:00:39]} 32. Rbxb2 {[%emt 0:00:10]} Rhb8 {[%emt 0:00:12]} 33. cxb5 {[%emt 0:01:18]} axb5 {[%emt 0:00:10]} 34. a4 {[%emt 0:00:36]} c4 {[%emt 0:00:18]} 35. Rxd4 {[%emt 0:00:16]} exd4 {[%emt 0:00:04]} 36. Nf5+ {[%emt 0:00:01]} Kf8 {[%emt 0:00:31]} 37. bxc4 {[%emt 0:00:16]} bxa4 {[%emt 0:01:24]} 38. Rxb7 Qxb7 {[%emt 0:00:56]} 39. Nxd6 {[%emt 0:00:41]} Qb2 {[%emt 0:00:14]} 40. Qxb2 {[%emt 0:00:25]} Rxb2 {[%emt 0:00:01]} 0-1

[Event "Hungarian Rapid-ch 2022"]
[Site "Ajka"]
[Date "2022.07.15"]
[Round "1.7"]
[White "Kozak, Adam"]
[Black "Virag, Balint"]
[Result "1-0"]
[ECO "A05"]
[WhiteElo "2522"]
[BlackElo "2164"]
[Annotator "ChessBase"]
[PlyCount "105"]
[EventDate "2022.07.15"]
[EventType "swiss"]
[EventCountry "HUN"]
[SourceTitle "playchess.com"]
[Source "ChessBase"]
[SourceQuality "1"]
[TimeControl "900+10"]

1. Nf3 {[%emt 0:00:42]} Nf6 {[%emt 0:00:15]} 2. g3 {[%emt 0:00:07]} g6 {[%emt 0:00:08]} 3. b3 {[%emt 0:00:02]} b6 {[%emt 0:00:04]} 4. Bg2 {[%emt 0:00:07]} Bb7 {[%emt 0:00:06]} 5. c4 {[%emt 0:00:06]} Bg7 {[%emt 0:00:06]} 6. Bb2 {[%emt 0:00:03]} c5 {[%emt 0:00:05]} 7. O-O {[%emt 0:00:53]} O-O {[%emt 0:00:27]} 8. Nc3 {[%emt 0:00:05]} d5 {[%emt 0:00:25]} 9. Nxd5 {[%emt 0:00:03]} Nxd5 {[%emt 0:00:06]} 10. Bxg7 {[%emt 0:00:03]} Kxg7 {[%emt 0:00:02]} 11. cxd5 {[%emt 0:00:02]} Bxd5 {[%emt 0:00:07]} 12. d4 {[%emt 0:00:30]} Na6 {[%emt 0:01:05]} 13. Qd3 {[%emt 0:02:49]} Bb7 {[%emt 0:00:25]} 14. Rfd1 {[%emt 0:00:29]} Rc8 {[%emt 0:02:22]} 15. d5 {[%emt 0:00:24]} Qd6 {[%emt 0:01:44]} 16. e4 {[%emt 0:00:44]} Rfd8 {[%emt 0:00:20]} 17. Qc3+ {[%emt 0:02:05]} Kg8 {[%emt 0:00:27]} 18. a3 {[%emt 0:01:13]} Nc7 {[%emt 0:03:08]} 19. Qe3 {[%emt 0:01:34]} e5 {[%emt 0:01:32]} 20. a4 {[%emt 0:00:32]} Na6 {[%emt 0:00:16]} 21. Qc3 {[%emt 0:00:19]} Re8 {[%emt 0:00:27]} 22. Nd2 {[%emt 0:00:40]} Nb4 {[%emt 0:00:28]} 23. Nc4 {[%emt 0:00:02]} Qe7 {[%emt 0:01:43]} 24. d6 {[%emt 0:00:32]} Qd7 {[%emt 0:00:20]} 25. Nxe5 {[%emt 0:00:06]} Rxe5 {[%emt 0:00:10]} 26. Qxe5 {[%emt 0:00:04]} Nc2 {[%emt 0:00:21]} 27. Rab1 {[%emt 0:01:31]} Nd4 {[%emt 0:00:03]} 28. Rxd4 {[%emt 0:00:03]} cxd4 {[%emt 0:00:03]} 29. Qxd4 {[%emt 0:00:01]} Rd8 {[%emt 0:00:26]} 30. Rd1 {[%emt 0:00:05]} Qe6 {[%emt 0:00:04]} 31. b4 {[%emt 0:00:08]} Bc6 {[%emt 0:00:17]} 32. b5 {[%emt 0:00:03]} Bb7 {[%emt 0:00:01]} 33. e5 {[%emt 0:00:07]} Bxg2 {[%emt 0:00:05]} 34. Kxg2 {[%emt 0:00:02]} f6 {[%emt 0:00:13]} 35. exf6 {[%emt 0:00:25]} Kf7 {[%emt 0:00:02]} 36. d7 {[%emt 0:00:12]} Qxf6 {[%emt 0:00:08]} 37. Qxf6+ {[%emt 0:00:02]} Kxf6 {[%emt 0:00:01]} 38. f4 {[%emt 0:00:06]} Ke7 {[%emt 0:00:10]} 39. Kf3 {[%emt 0:00:01]} Rf8 {[%emt 0:00:06]} 40. d8=Q+ {[%emt 0:00:05]} Rxd8 {[%emt 0:00:03]} 41. Rxd8 {[%emt 0:00:01]} Kxd8 {[%emt 0:00:02]} 42. g4 {[%emt 0:00:03]} Ke7 {[%emt 0:00:10]} 43. Ke4 {[%emt 0:00:04]} Ke6 {[%emt 0:00:09]} 44. f5+ {[%emt 0:00:07]} gxf5+ 45. gxf5+ {[%emt 0:00:03]} Kf6 {[%emt 0:00:09]} 46. Kf4 {[%emt 0:00:01]} Kf7 {[%emt 0:00:02]} 47. Ke5 {[%emt 0:00:01]} Ke7 {[%emt 0:00:01]} 48. f6+ {[%emt 0:00:05]} Kf7 {[%emt 0:00:01]} 49. Kf5 {[%emt 0:00:01]} Kf8 {[%emt 0:00:05]} 50. Ke6 {[%emt 0:00:02]} Ke8 {[%emt 0:00:02]} 51. f7+ {[%emt 0:00:07]} Kf8 {[%emt 0:00:01]} 52. Kf6 {[%emt 0:00:01]} h5 {[%emt 0:01:41]} 53. h4 {[%emt 0:00:01]} 1-0

[Event "Hungarian Rapid-ch 2022"]
[Site "Ajka"]
[Date "2022.07.15"]
[Round "1.8"]
[White "Paksa, Rudolf"]
[Black "Kaczur, Florian"]
[Result "0-1"]
[ECO "B15"]
[WhiteElo "1967"]
[BlackElo "2482"]
[Annotator "ChessBase"]
[PlyCount "102"]
[EventDate "2022.07.15"]
[EventType "swiss"]
[EventCountry "HUN"]
[SourceTitle "playchess.com"]
[Source "ChessBase"]
[SourceQuality "1"]
[TimeControl "900+10"]

1. e4 {[%emt 0:00:14]} c6 {[%emt 0:00:15]} 2. d4 {[%emt 0:00:09]} d5 {[%emt 0:00:02]} 3. Nc3 {[%emt 0:00:04]} a6 {[%emt 0:00:14]} 4. exd5 {[%emt 0:00:42]} cxd5 {[%emt 0:00:03]} 5. Bd3 {[%emt 0:00:15]} Nc6 {[%emt 0:00:04]} 6. Nge2 {[%emt 0:00:40]} Nf6 {[%emt 0:00:58]} 7. h3 {[%emt 0:00:06]} g6 {[%emt 0:00:12]} 8. Be3 {[%emt 0:00:05]} Bg7 {[%emt 0:00:04]} 9. a3 {[%emt 0:00:08]} h5 {[%emt 0:00:33]} 10. Qd2 {[%emt 0:00:09]} Bf5 {[%emt 0:00:07]} 11. O-O-O {[%emt 0:00:14]} b5 {[%emt 0:00:30]} 12. f3 {[%emt 0:00:07]} h4 {[%emt 0:00:33]} 13. Kb1 {[%emt 0:00:08]} e6 {[%emt 0:00:20]} 14. Rhe1 {[%emt 0:00:29]} Bxd3 {[%emt 0:00:47]} 15. Qxd3 {[%emt 0:00:02]} Nd7 {[%emt 0:01:02]} 16. Nc1 {[%emt 0:01:42]} O-O {[%emt 0:00:04]} 17. Nb3 {[%emt 0:02:57]} b4 {[%emt 0:00:16]} 18. axb4 {[%emt 0:00:03]} Nxb4 {[%emt 0:00:02]} 19. Qd2 {[%emt 0:00:12]} a5 {[%emt 0:00:15]} 20. Na4 {[%emt 0:00:15]} Nb6 {[%emt 0:00:05]} 21. Nxb6 {[%emt 0:00:08]} Qxb6 {[%emt 0:00:03]} 22. Bh6 {[%emt 0:00:37]} Rfb8 {[%emt 0:01:40]} 23. Bxg7 {[%emt 0:00:04]} Kxg7 {[%emt 0:00:03]} 24. Nc5 {[%emt 0:00:05]} Na6 {[%emt 0:01:30]} 25. Qc3 {[%emt 0:01:08]} Rc8 {[%emt 0:00:18]} 26. Qb3 {[%emt 0:00:13]} Qxb3 {[%emt 0:00:24]} 27. Nxb3 {[%emt 0:00:03]} a4 {[%emt 0:00:03]} 28. Nc1 {[%emt 0:00:12]} Rab8 {[%emt 0:01:19]} 29. Re3 {[%emt 0:00:09]} Nb4 {[%emt 0:00:10]} 30. Rd2 {[%emt 0:00:13]} Nc6 {[%emt 0:00:44]} 31. Ra3 {[%emt 0:00:12]} Na5 {[%emt 0:00:08]} 32. Rxa4 {[%emt 0:01:38]} Nc4 {[%emt 0:00:20]} 33. Rxc4 {[%emt 0:00:04]} dxc4 {[%emt 0:00:26]} 34. c3 {[%emt 0:00:03]} Kf6 {[%emt 0:00:18]} 35. Na2 {[%emt 0:00:40]} Rb5 {[%emt 0:00:07]} 36. Nb4 {[%emt 0:00:04]} Ra8 {[%emt 0:00:17]} 37. Kc2 {[%emt 0:00:02]} Kg5 {[%emt 0:00:34]} 38. Re2 {[%emt 0:00:15]} Kf4 {[%emt 0:00:43]} 39. Kd2 {[%emt 0:00:34]} Ra1 {[%emt 0:00:06]} 40. Kc2 {[%emt 0:00:27]} Rg1 {[%emt 0:00:11]} 41. b3 {[%emt 0:00:03]} cxb3+ {[%emt 0:00:28]} 42. Kxb3 {[%emt 0:00:02]} Kg3 {[%emt 0:00:08]} 43. Kc4 {[%emt 0:00:07]} Rb8 {[%emt 0:00:51]} 44. Nc6 {[%emt 0:00:13]} Rc8 {[%emt 0:00:05]} 45. Kc5 {[%emt 0:00:01]} Rxg2 {[%emt 0:00:10]} 46. Rxg2+ {[%emt 0:00:16]} Kxg2 {[%emt 0:00:02]} 47. c4 {[%emt 0:00:01]} Kxh3 {[%emt 0:00:03]} 48. d5 {[%emt 0:00:00]} exd5 {[%emt 0:00:06]} 49. cxd5 {[%emt 0:00:01]} Kg2 {[%emt 0:00:10]} 50. d6 {[%emt 0:00:01]} h3 {[%emt 0:00:12]} 51. d7 {[%emt 0:00:06]} Rh8 {[%emt 0:00:12]} 0-1

[Event "Hungarian Rapid-ch 2022"]
[Site "Ajka"]
[Date "2022.07.15"]
[Round "1.9"]
[White "Vertetics, Attila"]
[Black "Andreeva, Elena"]
[Result "1-0"]
[ECO "D50"]
[WhiteElo "2465"]
[BlackElo "1923"]
[Annotator "ChessBase"]
[PlyCount "87"]
[EventDate "2022.07.15"]
[EventType "swiss"]
[EventCountry "HUN"]
[SourceTitle "playchess.com"]
[Source "ChessBase"]
[SourceQuality "1"]
[TimeControl "900+10"]

1. d4 {[%emt 0:00:12]} d5 {[%emt 0:00:11]} 2. c4 {[%emt 0:00:02]} e6 {[%emt 0:00:06]} 3. Nc3 {[%emt 0:00:01]} Nf6 {[%emt 0:00:02]} 4. Bg5 {[%emt 0:00:03]} h6 {[%emt 0:00:09]} 5. Bxf6 {[%emt 0:00:05]} gxf6 {[%emt 0:00:05]} 6. cxd5 {[%emt 0:00:04]} exd5 {[%emt 0:00:04]} 7. e3 {[%emt 0:00:03]} c6 {[%emt 0:00:17]} 8. Bd3 {[%emt 0:00:10]} f5 9. Nge2 {[%emt 0:00:19]} Qg5 {[%emt 0:00:23]} 10. g3 {[%emt 0:00:50]} Nd7 {[%emt 0:00:31]} 11. h4 {[%emt 0:00:07]} Qg4 {[%emt 0:00:10]} 12. Qc2 {[%emt 0:03:24]} Nf6 {[%emt 0:00:06]} 13. O-O-O {[%emt 0:00:27]} Bd7 {[%emt 0:01:26]} 14. Rdf1 {[%emt 0:00:12]} h5 {[%emt 0:00:36]} 15. Nf4 {[%emt 0:01:30]} Bd6 {[%emt 0:01:25]} 16. Nce2 {[%emt 0:00:25]} Bxf4 {[%emt 0:00:33]} 17. Nxf4 {[%emt 0:00:03]} O-O-O {[%emt 0:00:17]} 18. Qc5 {[%emt 0:00:16]} a6 {[%emt 0:01:36]} 19. Qb6 {[%emt 0:00:10]} Be6 {[%emt 0:01:04]} 20. Kb1 {[%emt 0:00:36]} Ne4 {[%emt 0:04:10]} 21. Bxe4 {[%emt 0:03:28]} fxe4 {[%emt 0:00:05]} 22. Rc1 {[%emt 0:00:02]} Qf3 {[%emt 0:00:49]} 23. Rhf1 {[%emt 0:00:02]} Rd7 {[%emt 0:00:58]} 24. Rc2 {[%emt 0:00:04]} Rc7 {[%emt 0:00:06]} 25. Rfc1 {[%emt 0:00:01]} Kd7 {[%emt 0:00:06]} 26. b4 {[%emt 0:00:14]} Rhc8 {[%emt 0:01:30]} 27. a4 {[%emt 0:00:02]} Ke7 {[%emt 0:00:14]} 28. Qc5+ {[%emt 0:00:25]} Kf6 {[%emt 0:00:28]} 29. Qd6 {[%emt 0:00:16]} Rd7 {[%emt 0:00:42]} 30. Qe5+ {[%emt 0:00:23]} Ke7 {[%emt 0:00:03]} 31. Qxh5 {[%emt 0:02:17]} f6 {[%emt 0:00:33]} 32. Qh7+ {[%emt 0:00:29]} Kd6 {[%emt 0:00:05]} 33. Qh6 {[%emt 0:00:10]} Rf7 {[%emt 0:00:16]} 34. b5 {[%emt 0:00:13]} axb5 {[%emt 0:00:17]} 35. axb5 {[%emt 0:00:01]} Bd7 {[%emt 0:00:31]} 36. Qg6 {[%emt 0:00:11]} Ke7 {[%emt 0:00:24]} 37. h5 {[%emt 0:00:12]} f5 {[%emt 0:00:12]} 38. Qg5+ {[%emt 0:00:14]} Rf6 {[%emt 0:00:11]} 39. Qg7+ {[%emt 0:00:06]} Rf7 {[%emt 0:00:04]} 40. Qe5+ {[%emt 0:00:02]} Kd8 {[%emt 0:00:09]} 41. h6 {[%emt 0:00:28]} Rh7 {[%emt 0:00:18]} 42. Qf6+ {[%emt 0:00:06]} Kc7 {[%emt 0:00:27]} 43. Nxd5+ {[%emt 0:00:03]} Kb8 {[%emt 0:00:03]} 44. Qd6+ {[%emt 0:00:02]} 1-0